[Event "FIDE WSTC Open 50 2025"]
[Site "Prague"]
[Date "2025.02.20"]
[Round "4.28"]
[White "Findlay, Ian T."]
[Black "Horvath, Peter"]
[Result "0-1"]
[Annotator "TA"]
[ECO "B32"]
[WhiteElo "2089"]
[BlackElo "2354"]
[PlyCount "104"]
[EventDate "2025.02.17"]
[EventType "team-tourn"]
[EventCountry "CZE"]
[SourceTitle "playchess.com"]
[Source "ChessBase"]
[SourceQuality "1"]
[TimeControl "40/5400+30:1800+30"]

{[%evp 21,104,17,14,24,26,23,21,20,32,19,20,25,14,20,27,-5,26,30,27,0,19,28,21,-24,-18,-10,14,-75,-67,-135,-133,-133,-128,-153,-137,-149,-160,-166,-156,-187,-166,-187,-174,-224,-114,-239,-235,-229,-205,-210,-200,-202,-193,-201,-150,-137,-148,-135,-95,-98,-77,-177,-151,-147,-151,-155,-155,-264,-197,-446,-439,-522,-481,-686,-686,-671,-664,-657,-648,-685,-672,-719,-712,-647,-608]} 1. e4 {[%emt 0:00:02]} c5 {[%emt 0:00:12]} 2. Nf3 {[%emt 0:00:07]} Nc6 {[%emt 0:00:12]} 3. d4 {[%emt 0:00:05]} cxd4 {[%emt 0:00:12]} 4. Nxd4 {[%emt 0:00:03]} e5 {[%emt 0:00:20]} 5. Nb5 {[%emt 0:00:09][%cal Bd4b5,Bb5a3,Ba3c2,Bc2e3][%mdl 32]} d6 {[%emt 0:00:24]} 6. c4 {[%emt 0:00:08]} Be7 {[%emt 0:01:04]} 7. N1c3 {[%emt 0:00:39]} a6 {[%emt 0:00:44]} 8. Na3 {[%emt 0:00:07]} f5 {[%emt 0:01:01]} 9. exf5 {[%emt 0:00:31]} Bxf5 {[%emt 0:00:10]} 10. Bd3 {[%emt 0:01:03]} Be6 {[%emt 0:00:43]} 11. O-O {[%emt 0:01:34] 11.Nc2 injects fresh life into this line.} Nf6 {[%emt 0:01:27]} 12. Nc2 {[%emt 0:05:05] B32: Sicilian: Löwenthal and Kalashnikov Variations.} O-O {[%emt 0:01:27]} 13. b3 {[%emt 0:12:17][%cal Oc3d5]} Qd7 {[%emt 0:11:40]} 14. Bb2 {[%emt 0:02:18] The position is equal.} Bd8 {[%emt 0:17:19]} 15. Qd2 {[%emt 0:14:29]} Bb6 {[%emt 0:05:39]} 16. Ne3 {[%emt 0:01:55]} Rad8 {[%emt 0:04:35]} 17. Rad1 {[%emt 0:00:36]} Kh8 {[%emt 0:05:41]} 18. Bb1 {[%emt 0:17:17]} (18. Kh1 Bd4 19. f3 Qc7 20. Rfe1) 18... Ng4 $146 {[%emt 0:11:32][%cal Of8f2] [#]} (18... Ba7 19. Qd3 Qf7 20. Ne4 Nxe4 21. Qxe4 Qh5 22. g4 Qh3 23. Qg2 Qh4 24. Bf5 Qe7 {0-1 Voekler,B (2385)-Ikonnikov,V (2542) Neckar op-A 7th 2003 (6)}) 19. Nxg4 {[%emt 0:03:29]} Bxg4 {[%emt 0:00:15]} 20. Qd3 {[%emt 0:03:58][%csl Gb1][%cal Rd3h7]} g6 {[%emt 0:01:38] Active counter play!} 21. Rd2 {[%emt 0:00:46]} Nd4 {[%emt 0:01:27][%cal Od4f3]} 22. Nd5 {[%emt 0:00:41] [#]} (22. Qg3 {simplifies} Ba7 23. Kh1 Bf5 24. Bd3) 22... Nf3+ $1 {[%emt 0:08:43]} 23. Kh1 $1 {[%emt 0:00:33]} (23. gxf3 $2 Bxf3 $19) 23... Nxd2 {[%emt 0:00:08]} 24. Qxd2 {[%emt 0:00:10]} (24. Nxb6 $11 Qc6 25. Qxd2 Qxb6 26. Bxg6) 24... Ba7 $17 {[%emt 0:04:49]} 25. f4 {[%emt 0:00:52]} (25. a4 $15) 25... Be6 {[%emt 0:05:30][%cal Og6g5]} 26. Be4 {[%emt 0:00:27]} Qg7 {[%emt 0:04:33]} 27. g3 {[%emt 0:02:45]} Bd4 {[%emt 0:03:08]} 28. Bxd4 {[%emt 0:03:32]} exd4 {[%emt 0:00:06][%csl Od4] Black has a strong passed pawn} 29. Rd1 {[%emt 0:05:57]} Bg4 {[%emt 0:00:38]} 30. Re1 {[%emt 0:01:26]} Rde8 {[%emt 0:02:03][%cal Oe8e4]} 31. Kg2 {[%emt 0:00:09]} Be6 {[%emt 0:03:35]} 32. Nb4 {[%emt 0:00:27]} (32. Rd1 $142) 32... Bf5 {[%emt 0:00:48]} ({Black should try} 32... g5 $19 33. fxg5 Bg4 (33... Bf5 $2 34. Bxf5 Rxe1 35. Qxe1 $19)) 33. Bf3 {[%emt 0:02:21]} (33. Bxf5 $17 gxf5 34. Rxe8 Rxe8 35. Nd5) 33... Rxe1 $19 {[%emt 0:01:53]} 34. Qxe1 {[%emt 0:00:07]} a5 {[%emt 0:00:19]} 35. Nd5 {[%emt 0:00:12]} d3 {[%emt 0:01:01]} 36. g4 {[%emt 0:00:21]} Bd7 {[%emt 0:00:08]} 37. Qe3 {[%emt 0:00:30]} Bc6 {[%emt 0:01:51]} 38. Qxd3 {[%emt 0:00:11]} Bxd5 {[%emt 0:00:33]} 39. Qxd5 {[%emt 0:00:09]} Rxf4 {[%emt 0:00:53]} 40. Qxd6 $17 {[%emt 0:00:09][%mdl 4096] Endgame KQR-KQB} Rf8 {[%emt 0:01:10]} 41. c5 {[%emt 0:32:45]} (41. g5 $17) 41... Qb2+ {[%emt 0:04:34]} 42. Kg3 {[%emt 0:00:00]} Kg7 $36 {[%emt 0:00:21][%mdl 2048] Black has strong initiative.} 43. Qd5 {[%emt 0:00:00]} Rf7 {[%emt 0:00:48][%cal Of7e7]} (43... Qxa2 44. Qe5+ Rf6 45. g5 (45. Bxb7 $2 Qxb3+ 46. Kh4 Qe6 $19) 45... Qd2 46. gxf6+ Kh6 47. f7 (47. Bxb7 g5 $18) (47. Qf4+ Qxf4+ 48. Kxf4 g5+ 49. Kf5 g4 50. Bxb7 a4 51. bxa4 g3 52. hxg3 Kh5 53. f7 Kh6 54. f8=Q+ Kh5 55. Bf3#) 47... Qd8 48. Qe8 (48. Bxb7 Qf8 $18) 48... Qg5+ 49. Bg4) 44. a4 {[%emt 0:00:00]} (44. h4 $17) 44... Re7 {[%emt 0:01:28] ...Qe5+ would now be deadly.} 45. h4 $2 {[%emt 0:00:00]} (45. c6 {keeps fighting.} bxc6 46. Qxa5) 45... Qe5+ $19 {[%emt 0:00:43] Black is clearly winning.} 46. Qxe5+ {[%emt 0:00:00]} Rxe5 {[%emt 0:00:05]} 47. Bxb7 {[%emt 0:00:00]} (47. c6 $142 bxc6 48. Kf4) 47... Rxc5 {[%emt 0:00:03] KR-KB} 48. Kf4 {[%emt 0:00:00]} Rc3 {[%emt 0:01:25]} 49. Bd5 {[%emt 0:00:00]} Rh3 {[%emt 0:00:23]} 50. Bf3 {[%emt 0:00:00]} Rxh4 {[%emt 0:07:09]} ({Not} 50... h6 51. h5 $17) 51. Kg3 {[%emt 0:00:00]} g5 {[%emt 0:00:09]} 52. Bd5 {[%emt 0:00:00]} Rh6 {[%emt 0:01:01] Weighted Error Value: White=0.37/Black=0.14 (very precise)   Mistake:       	White=8     	Black=1      Inaccurate:     	White=3     	Black=1      OK:         	White=7     	Black=12     Best:        	White=4     	Black=2      Strong:       	White=1     	---} 0-1

[Event "FIDE WSTC Open 50 2025"]
[Site "Prague"]
[Date "2025.02.20"]
[Round "4.29"]
[White "Titscher, Libor"]
[Black "Wang, Pin"]
[Result "1/2-1/2"]
[Annotator "TA"]
[ECO "A22"]
[WhiteElo "2147"]
[BlackElo "2389"]
[PlyCount "83"]
[EventDate "2025.02.17"]
[EventType "team-tourn"]
[EventCountry "CZE"]
[SourceTitle "playchess.com"]
[Source "ChessBase"]
[SourceQuality "1"]
[TimeControl "40/5400+30:1800+30"]

{[%evp 19,83,-12,5,0,-1,10,39,39,36,0,0,0,6,10,37,-26,-33,-33,-40,-39,-35,-47,-39,-50,-26,-62,-53,-44,0,0,0,0,0,-109,-103,-95,-18,-22,0,-257,0,0,0,0,0,0,0,0,0,0,0,-55,0,0,7,0,0,0,0,0,52,29,80,18,18,-23]} 1. c4 {[%emt 0:00:06]} e5 {[%emt 0:00:05]} 2. Nc3 {[%emt 0:00:05]} Nf6 {[%emt 0:00:09]} 3. g3 {[%emt 0:00:06]} Nc6 {[%emt 0:00:12]} 4. Bg2 {[%emt 0:00:07]} g6 {[%emt 0:00:05]} 5. Nf3 {[%emt 0:00:16]} Bg7 {[%emt 0:00:06]} 6. d3 {[%emt 0:00:07]} d6 {[%emt 0:00:39]} 7. Rb1 {[%emt 0:00:21]} a5 {[%emt 0:00:16]} 8. a3 {[%emt 0:00:08][%cal Ba2a3,Ba3b4,Bb4b5][%mdl 32]} O-O {[%emt 0:00:20]} 9. O-O {[%emt 0:00:07]} Re8 {[%emt 0:00:11]} 10. Nd2 {[%emt 0:00:09]} Be6 {[%emt 0:08:06]} 11. b4 {[%emt 0:01:04] A26: English Opening vs King's Indian with ...Nc6 and d3.} axb4 {[%emt 0:00:06]} 12. axb4 {[%emt 0:00:05]} Qd7 {[%emt 0:05:22]} 13. b5 {[%emt 0:00:34] White is slightly better.} Nd8 {[%emt 0:00:30]} 14. Re1 $146 {[%emt 0:00:12]} ({Predecessor:} 14. Nd5 Nxd5 15. cxd5 Bg4 16. f3 Bh3 17. Qc2 Bxg2 18. Kxg2 b6 19. Nc4 f5 20. e4 {1-0 Maghsoodloo,P (2594)-Tabatabaei,M (2577) Fajr op 26th 2018 (8)}) 14... Bh3 {[%emt 0:01:17]} 15. Bh1 {[%emt 0:01:43]} c6 {[%emt 0:00:55]} 16. Qb3 {[%emt 0:05:03]} h6 {[%emt 0:17:48]} 17. Bb2 {[%emt 0:28:34]} (17. bxc6 $14 bxc6 18. Nde4) 17... Ne6 $11 {[%emt 0:09:10]} 18. Na4 {[%emt 0:04:48]} Qc7 {[%emt 0:10:23] Prevents Nb6.} 19. Ra1 {[%emt 0:05:39]} Nd4 {[%emt 0:13:22]} 20. Bxd4 {[%emt 0:03:53]} exd4 {[%emt 0:00:02]} 21. Ne4 {[%emt 0:07:12]} Ng4 {[%emt 0:01:18]} (21... Nd7 {simplifies} 22. Nd2 f5 23. Nf3 g5) 22. bxc6 {[%emt 0:06:53]} bxc6 {[%emt 0:00:17]} 23. Qb6 {[%emt 0:00:59]} Qxb6 {[%emt 0:16:53]} 24. Nxb6 {[%emt 0:00:49]} Rxa1 {[%emt 0:00:02]} 25. Rxa1 {[%emt 0:00:01][%cal Of2f4]} f5 {[%emt 0:00:04]} 26. f3 {[%emt 0:09:43]} (26. Nxd6 $11 {remains equal.} Rxe2 27. Bxc6) 26... fxe4 $17 {[%emt 0:04:36]} 27. fxg4 {[%emt 0:00:06]} exd3 {[%emt 0:03:17]} (27... Bxg4 $17 28. Bxe4 Rxe4 29. Ra8+ (29. dxe4 $2 d3 $17) 29... Kf7 30. dxe4 d3 31. exd3 (31. Ra7+ $2 Ke6 $19) 31... Bd4+ 32. Kf1 Bxb6) 28. exd3 $11 {[%emt 0:00:03]} Re3 {[%emt 0:02:13]} 29. Be4 {[%emt 0:09:46][%mdl 8192] [#]} (29. Bxc6 $11 {and White is okay.} Bxg4 30. Nd5) 29... Kh7 $2 {[%emt 0:00:21]} ({Not} 29... Bxg4 30. Bxg6 Be5 31. Ra2 $15) (29... Rxe4 $1 $19 30. dxe4 d3) 30. Ra7 $1 {[%emt 0:00:10]} Bxg4 {[%emt 0:00:34][%cal Oe3e4] White must now prevent ...Rxe4!.} 31. Nd7 {[%emt 0:00:24]} Kg8 {[%emt 0:05:02]} 32. Bxg6 {[%emt 0:03:03] Black must now prevent Ra8+.} Be5 {[%emt 0:01:19]} 33. Nxe5 {[%emt 0:04:58]} dxe5 {[%emt 0:00:14][%mdl 4096] Endgame KRB-KRB} 34. Be4 {[%emt 0:01:16]} Be2 {[%emt 0:00:19]} 35. Bxc6 {[%emt 0:02:43]} (35. Re7 $11) 35... Rxd3 {[%emt 0:01:35]} (35... Bxd3 $15 36. Bd5+ Kf8) 36. Bd5+ {[%emt 0:00:28]} Kh8 {[%emt 0:00:17]} 37. Kf2 {[%emt 0:01:06]} Rd2 {[%emt 0:00:38]} 38. Ke1 {[%emt 0:00:48]} Rc2 {[%emt 0:00:31][%cal Oe2d3]} 39. Re7 {[%emt 0:00:59]} d3 {[%emt 0:00:47]} ({Black should play} 39... Bd3 $11 40. Kd1 (40. Rxe5 Bxc4 41. Bxc4 Rxc4 $11) 40... Rxh2) 40. Rxe5 {[%emt 0:00:03]} h5 {[%emt 0:00:38] [#]} (40... Kg7 $11 41. h3 Rc1+ 42. Kd2 Rd1+ 43. Ke3 Rg1) 41. Be4 {[%emt 0:19:22]} (41. h3 $1 $16) 41... Rxc4 {[%emt 0:02:46]} 42. Bxd3 {[%emt 0:00:25] Weighted Error Value: White=0.31/Black=0.25 (precise)   Loses game:     	White=1     	---        Missed win:     	---       	Black=1      Mistake:       	White=4     	Black=4      Inaccurate:     	White=3     	Black=3      OK:         	White=9     	Black=11     Best:        	White=1     	Black=2      Strong:       	White=1     	---} 1/2-1/2

[Event "FIDE WSTC Open 50 2025"]
[Site "Prague"]
[Date "2025.02.20"]
[Round "4.32"]
[White "Liu, Shilan"]
[Black "Haentsch, Ralf"]
[Result "1/2-1/2"]
[Annotator "TA"]
[ECO "C78"]
[WhiteElo "2093"]
[BlackElo "2087"]
[PlyCount "60"]
[EventDate "2025.02.17"]
[EventType "team-tourn"]
[EventCountry "CZE"]
[SourceTitle "playchess.com"]
[Source "ChessBase"]
[SourceQuality "1"]
[TimeControl "40/5400+30:1800+30"]

{[%evp 16,60,29,-1,0,0,-7,-7,0,-2,-7,-9,0,0,0,0,0,0,0,0,0,0,0,0,0,-8,0,-16,0,-31,0,-11,0,-13,0,-23,0,0,0,0,0,0,0,0,0,0,0]} 1. e4 {[%emt 0:00:05]} e5 {[%emt 0:00:05]} 2. Nf3 {[%emt 0:00:07]} Nc6 {[%emt 0:00:14]} 3. Bb5 {[%emt 0:00:07][%cal Bf1b5,Bb5a4,Ba4b3,Bb3a2,Ba2d5][%mdl 32]} a6 {[%emt 0:00:18]} 4. Ba4 {[%emt 0:00:06]} Nf6 {[%emt 0:00:38]} 5. O-O {[%emt 0:00:13]} b5 {[%emt 0:01:02]} 6. Bb3 {[%emt 0:00:12]} Be7 {[%emt 0:00:10]} 7. d3 {[%emt 0:00:29]} O-O {[%emt 0:01:58]} 8. Nc3 {[%emt 0:01:23]} d6 {[%emt 0:01:07]} 9. a4 {[%emt 0:02:01]} b4 {[%emt 0:01:59] C84: Closed Ruy Lopez: Unusual White 6th moves.} 10. Nd5 {[%emt 0:00:11]} Na5 {[%emt 0:05:58]} 11. Ba2 {[%emt 0:08:12]} Nxd5 {[%emt 0:03:17]} 12. Bxd5 {[%emt 0:00:12]} c6 {[%emt 0:09:09]} 13. Ba2 {[%emt 0:02:56] Not much happening anymore} c5 {[%emt 0:05:15][%cal Ob4b3]} 14. Bd5 {[%emt 0:03:59]} Rb8 {[%emt 0:03:35]} 15. Nd2 {[%emt 0:07:27]} Bg5 {[%emt 0:06:48]} 16. Nc4 {[%emt 0:02:01]} Nxc4 {[%emt 0:01:32]} 17. Bxc4 $146 {[%emt 0:00:40]} (17. dxc4 Bxc1 18. Qxc1 Qe7 19. a5 Be6 20. Rd1 f5 21. Qd2 Rbd8 22. Bxe6+ Qxe6 23. Qd5 Qxd5 24. Rxd5 {½-½ Deepan Chakkravarthy,J (2531)-Siva,M (2346) Mumbai Mayors Cup 11th 2018 (6)}) 17... a5 {[%emt 0:06:38]} 18. b3 {[%emt 0:01:28]} Qf6 {[%emt 0:07:16]} 19. Bxg5 {[%emt 0:01:34]} Qxg5 {[%emt 0:00:03]} 20. Qc1 {[%emt 0:00:26]} Qxc1 {[%emt 0:01:55]} 21. Raxc1 {[%emt 0:00:03]} Be6 {[%emt 0:02:24]} 22. Rcd1 {[%emt 0:03:49]} Rbe8 {[%emt 0:04:46]} 23. Bb5 {[%emt 0:06:34]} Re7 {[%emt 0:03:01]} 24. f4 {[%emt 0:00:45]} f6 {[%emt 0:07:55]} 25. Rd2 {[%emt 0:01:41]} g5 {[%emt 0:07:51]} 26. fxg5 {[%emt 0:05:44] The position is equal.} fxg5 {[%emt 0:00:20]} 27. Bc4 {[%emt 0:04:02]} Rxf1+ {[%emt 0:05:09]} 28. Kxf1 {[%emt 0:00:06]} Bxc4 {[%emt 0:03:25]} 29. dxc4 {[%emt 0:00:03]} Rf7+ {[%emt 0:00:10]} 30. Ke2 {[%emt 0:00:08]} Rf6 {[%emt 0:00:32] Not much happened in this game.   Weighted Error Value: White=0.05 (flawless) /Black=0.04 (flawless)   Inaccurate:     	White=1     	Black=1      OK:         	White=12    	Black=11} 1/2-1/2

[Event "FIDE WSTC Open 50 2025"]
[Site "Prague"]
[Date "2025.02.20"]
[Round "4.33"]
[White "Lesiege, Alexandre"]
[Black "Muir, Andrew J"]
[Result "1-0"]
[Annotator "TA"]
[ECO "B63"]
[WhiteElo "2504"]
[BlackElo "2166"]
[PlyCount "87"]
[EventDate "2025.02.17"]
[EventType "team-tourn"]
[EventCountry "CZE"]
[SourceTitle "playchess.com"]
[Source "ChessBase"]
[SourceQuality "1"]
[TimeControl "40/5400+30:1800+30"]

{[%evp 16,87,29,39,38,35,14,0,29,29,37,39,42,40,49,58,78,76,76,76,80,74,100,74,93,84,81,80,103,64,95,98,91,105,105,105,114,102,114,112,112,105,142,140,187,172,292,268,398,374,389,310,552,456,529,490,860,842,750,545,1133,1193,2698,2599,29979,29980,29984,29985,29987,29988,29988,29989,29990,29991]} 1. e4 {[%emt 0:00:21]} c5 {[%emt 0:00:20]} 2. Nf3 {[%emt 0:00:06]} Nc6 {[%emt 0:00:05]} 3. d4 {[%emt 0:00:20]} cxd4 {[%emt 0:00:06]} 4. Nxd4 {[%emt 0:00:06]} Nf6 {[%emt 0:00:05]} 5. Nc3 {[%emt 0:00:08]} d6 {[%emt 0:00:05]} 6. Bg5 {[%emt 0:00:14]} e6 {[%emt 0:00:20]} 7. Qd2 {[%emt 0:01:08]} Be7 {[%emt 0:00:26]} 8. O-O-O {[%emt 0:01:16]} O-O {[%emt 0:00:08] 8...a6 deserves study.} 9. h4 {[%emt 0:04:17]} a6 {[%emt 0:01:16] B63: Sicilian: Richter-Rauzer: 7...Be7 and unusual Black 7th moves.} 10. Nxc6 {[%emt 0:00:32]} bxc6 {[%emt 0:00:07]} 11. Rh3 {[%emt 0:00:06]} e5 {[%emt 0:02:22] The position is equal.} 12. Rd3 {[%emt 0:03:06][%cal Rd3d6]} Be6 {[%emt 0:11:17]} 13. Rxd6 $146 {[%emt 0:01:58]} ({Predecessor:} 13. Bxf6 gxf6 14. f4 Kh8 15. f5 Bc4 16. Rf3 Bxf1 17. Rfxf1 Rg8 18. Qe2 Rg3 19. Rf3 {½-½ Murphy,C (2452)-Muir,A (2225) Kingston-A 2nd 2023 (1)}) 13... Bxd6 {[%emt 0:03:32]} 14. Qxd6 {[%emt 0:00:06]} Qb6 {[%emt 0:27:16]} 15. Be3 $1 {[%emt 0:05:24][%cal Bg5e3,Be3b6,Bb6a5][%mdl 32]} Qa5 {[%emt 0:04:22] Black is weak on the dark squares} 16. Qxc6 {[#] aiming for Bb6.} Rfc8 {[%emt 0:10:31]} 17. Qb6 {[%emt 0:26:29] White is more active.} Qxb6 {[%emt 0:00:59]} 18. Bxb6 {[%emt 0:01:38]} Rc6 {[%emt 0:12:40] [#]} 19. Ba5 {[%emt 0:04:39]} Rac8 {[%emt 0:04:17]} 20. f3 {[%emt 0:02:58]} Bc4 {[%emt 0:01:13]} 21. Bxc4 {[%emt 0:06:02]} Rxc4 {[%emt 0:00:10]} 22. Bb6 {[%emt 0:13:37]} h6 {[%emt 0:04:36]} 23. Rd2 {[%emt 0:05:39]} Kf8 {[%emt 0:01:19]} 24. Nd1 {[%emt 0:02:15]} R4c6 {[%emt 0:02:30]} 25. Ba5 {[%emt 0:03:22]} Ke7 {[%emt 0:03:49]} 26. Ne3 {[%emt 0:00:24]} g6 {[%emt 0:01:16] Prevents Nf5+.} 27. b3 {[%emt 0:01:44]} Ke6 {[%emt 0:02:18]} 28. c4 {[%emt 0:00:38]} Rd6 {[%emt 0:01:24]} 29. Nd5 {[%emt 0:00:14]} Nxd5 {[%emt 0:03:41]} (29... Rd7 $16 30. Nxf6 Rxd2 31. Bxd2 Kxf6) 30. exd5+ $16 {[%emt 0:00:05][%mdl 4096] Endgame KRR-KRB} Kf5 {[%emt 0:00:06]} (30... Kd7 $142 31. Bc3 f6) 31. Kb2 {[%emt 0:00:47]} e4 {[%emt 0:00:27]} (31... g5 $142 32. g4+ Kf4) 32. fxe4+ $18 {[%emt 0:00:14]} Kxe4 {[%emt 0:00:04]} 33. Kc3 {[%emt 0:01:43]} f5 $2 {[%emt 0:00:40]} (33... Ke3 34. Rd3+ Ke4 35. Rd4+ Ke5) 34. Re2+ {[%emt 0:00:31]} Kf4 {[%emt 0:00:06]} 35. Kd4 {[%emt 0:00:13]} g5 {[%emt 0:00:32]} (35... Rd7 $142 36. c5 g5 37. Rf2+ Kg3) 36. c5 {[%emt 0:01:50]} Rd7 {[%emt 0:00:17]} 37. hxg5 {[%emt 0:01:30]} hxg5 {[%emt 0:00:13][%cal Bh6g5,Bg5g4][%mdl 32]} 38. d6 {[%emt 0:00:18][%cal Bd5d6,Bd6e7][%mdl 32]} g4 {[%emt 0:01:06]} 39. Re7 {[%emt 0:03:33]} Rxe7 {[%emt 0:02:32]} 40. dxe7 {[%emt 0:00:05] White mates.} Re8 {[%emt 0:00:07]} 41. Bd8 {[%emt 0:31:08]} Kg3 {[%emt 0:31:13]} 42. c6 {[%emt 0:00:05]} f4 {[%emt 0:00:35]} 43. c7 {[%emt 0:00:05]} Kxg2 {[%emt 0:00:00]} 44. c8=Q {[%emt 0:00:00] Weighted Error Value: White=0.13 (very precise) /Black=0.86  Mistake:       	---       	Black=5      Inaccurate:     	White=1     	Black=5      OK:         	White=17    	Black=6      Best:        	White=1     	Black=1      Strong:       	White=1     	---} 1-0

[Event "FIDE WSTC Open 50 2025"]
[Site "Prague"]
[Date "2025.02.20"]
[Round "4.37"]
[White "Aagaard, Jacob"]
[Black "Frenken, Marcel"]
[Result "1/2-1/2"]
[Annotator "TA"]
[ECO "B80"]
[WhiteElo "2435"]
[BlackElo "2064"]
[PlyCount "32"]
[EventDate "2025.02.17"]
[EventType "team-tourn"]
[EventCountry "CZE"]
[SourceTitle "playchess.com"]
[Source "ChessBase"]
[SourceQuality "1"]
[TimeControl "40/5400+30:1800+30"]

{[%evp 13,32,13,23,15,17,8,63,0,45,0,0,0,0,0,0,0,0,0,0,0,29]} 1. e4 {[%emt 0:01:28]} c5 {[%emt 0:00:05]} 2. Nf3 {[%emt 0:00:10]} e6 {[%emt 0:00:05]} 3. d4 {[%emt 0:01:36]} cxd4 {[%emt 0:00:06]} 4. Nxd4 {[%emt 0:00:08]} Nf6 {[%emt 0:00:05]} 5. Nc3 {[%emt 0:00:20]} d6 {[%emt 0:00:05]} 6. Be3 {[%emt 0:02:04]} a6 {[%emt 0:00:07]} 7. Qf3 {[%emt 0:00:13] 7.a3 is setting a new trend.} Nbd7 {[%emt 0:07:33]} 8. Be2 {[%emt 0:03:26] B80: Sicilian Scheveningen: 6 g3 and 6 Be3, including English Attack.} Qc7 {[%emt 0:00:43]} 9. g4 {[%emt 0:09:47] White wants to play g5.} Ne5 {[%emt 0:07:59]} (9... h6 $11) 10. Qh3 {[%emt 0:01:21]} ({White should try} 10. Qg3 $14) 10... Nc4 {[%emt 0:02:31]} 11. Bc1 $146 {[%emt 0:07:51]} ({Predecessor:} 11. O-O-O Nxe3 12. Qxe3 b5 13. g5 Nd7 14. a3 Bb7 15. f4 Rc8 16. h4 Nb6 17. h5 {1-0 Botvinnik,I-Yuferov,S (2430) BLR-ch Belarus 1984}) 11... Qc5 {[%emt 0:34:51] The position is equal.} 12. Nb3 {[%emt 0:07:30]} Qc6 {[%emt 0:00:19]} 13. Nd4 {[%emt 0:08:23]} Qc5 {[%emt 0:00:09]} 14. Nb3 {[%emt 0:00:07]} Qc6 {[%emt 0:00:06]} 15. Nd4 {[%emt 0:00:49]} Qc5 {[%emt 0:00:09]} 16. Nb3 {[%emt 0:00:08]} Qc6 {[%emt 0:00:07] Weighted Error Value: White=0.13 (very precise) /Black=0.13 (very precise)   Mistake:       	White=1     	Black=1      Inaccurate:     	White=1     	Black=1      OK:         	White=4     	Black=5      Best:        	---       	Black=1} 1/2-1/2

[Event "FIDE WSTC Open 50 2025"]
[Site "Prague"]
[Date "2025.02.20"]
[Round "4.40"]
[White "Merx, Bob"]
[Black "Nielsen, Niels-Peter"]
[Result "1/2-1/2"]
[Annotator "TA"]
[ECO "B10"]
[WhiteElo "1968"]
[BlackElo "2086"]
[PlyCount "30"]
[EventDate "2025.02.17"]
[EventType "team-tourn"]
[EventCountry "CZE"]
[SourceTitle "playchess.com"]
[Source "ChessBase"]
[SourceQuality "1"]
[TimeControl "40/5400+30:1800+30"]

{[%evp 10,30,55,36,21,29,32,17,15,-3,0,-13,-10,-8,-2,-45,-25,-52,-5,-7,-10,-7,-20]} 1. e4 {[%emt 0:00:30]} c6 {[%emt 0:00:02]} 2. d3 {[%emt 0:00:00]} d5 {[%emt 0:00:16]} 3. Nd2 {[%emt 0:00:00]} dxe4 {[%emt 0:04:21]} 4. dxe4 {[%emt 0:00:02]} Nf6 {[%emt 0:02:37]} 5. Ngf3 {[%emt 0:04:24]} Bg4 {[%emt 0:01:55]} 6. Be2 {[%emt 0:06:52]} Nbd7 {[%emt 0:03:21] B10: Caro-Kann: 2 d3 and 2 c4.} 7. O-O {[%emt 0:07:46]} Qc7 {[%emt 0:03:02]} 8. c3 {[%emt 0:05:56]} e6 {[%emt 0:03:10]} 9. Qc2 {[%emt 0:08:16]} Be7 {[%emt 0:05:22]} 10. a4 $146 {[%emt 0:04:37]} (10. Nc4 O-O 11. e5 Nd5 12. Re1 b5 13. Nd6 Bxd6 14. exd6 Qxd6 15. Ng5 Bf5 16. Bd3 Bxd3 17. Qxd3 {½-½ Hoyos Bedoya,N (1669)-Cruz Quintanilla,M (1284) Iberoamerican-ch 9th 2023 (3)}) 10... O-O {[%emt 0:02:45]} 11. Re1 {[%emt 0:02:52]} Rfd8 {[%emt 0:02:07]} 12. Nf1 {[%emt 0:08:12]} Nc5 {[%emt 0:04:29]} 13. Ng3 {[%emt 0:05:32]} Nh5 {[%emt 0:07:15]} (13... Bd6 $15 {feels stronger.}) 14. Nd4 {[%emt 0:08:47]} Bxe2 {[%emt 0:03:27]} 15. Qxe2 {[%emt 0:05:17]} Nxg3 {[%emt 0:02:40] Weighted Error Value: White=0.14 (very precise) /Black=0.08 (flawless)   Mistake:       	---       	Black=1      Inaccurate:     	White=2     	---        OK:         	White=3     	Black=6} 1/2-1/2

[Event "FIDE WSTC Open 50 2025"]
[Site "Prague"]
[Date "2025.02.21"]
[Round "5.1"]
[White "Kazhgaleyev, Murtas"]
[Black "David, Alberto"]
[Result "1/2-1/2"]
[Annotator "TA"]
[ECO "E46"]
[WhiteElo "2495"]
[BlackElo "2467"]
[PlyCount "32"]
[EventDate "2025.02.17"]
[EventType "team-tourn"]
[EventCountry "CZE"]
[SourceTitle "playchess.com"]
[Source "ChessBase"]
[SourceQuality "1"]
[TimeControl "40/5400+30:1800+30"]

{[%evp 13,32,0,0,-11,0,0,0,0,0,6,0,-16,8,1,0,10,11,20,13,15,16]} 1. d4 {[%emt 0:00:04]} Nf6 {[%emt 0:00:12]} 2. c4 {[%emt 0:00:03]} e6 {[%emt 0:00:06]} 3. Nc3 {[%emt 0:00:03]} Bb4 {[%emt 0:00:07]} 4. e3 {[%emt 0:00:06]} O-O {[%emt 0:00:22]} 5. Bd2 {[%emt 0:00:04]} d5 {[%emt 0:05:41]} 6. Nf3 {[%emt 0:00:12]} b6 {[%emt 0:00:52]} 7. cxd5 {[%emt 0:00:12]} exd5 {[%emt 0:00:06] The position is equal.} 8. Bd3 {[%emt 0:00:04] E51: Nimzo-Indian: Rubinstein: 4...0-0 5 Nf3 d5.} Be7 {[%emt 0:06:11]} 9. O-O {[%emt 0:06:25]} c5 {[%emt 0:01:26]} 10. Ne5 {[%emt 0:04:18]} Bb7 {[%emt 0:01:35]} 11. Qf3 {[%emt 0:17:08]} Nc6 {[%emt 0:06:38]} 12. Rfd1 {[%emt 0:03:01]} g6 $146 {[%emt 0:18:50]} ({Predecessor:} 12... Re8 13. Rac1 a6 14. Bb1 Rc8 15. Ng4 cxd4 16. exd4 Nxg4 17. Qxg4 Bf6 18. Be3 g6 {0-1 Mochalin,F (2138)-Salemgareev,T (2463) Cheliabinsk Panchenko Memorial op-A 2021 (1)}) 13. Bb5 {[%emt 0:12:26]} Qd6 {[%emt 0:07:28]} 14. Nxc6 {[%emt 0:10:15]} Bxc6 {[%emt 0:01:12]} 15. dxc5 {[%emt 0:01:41]} bxc5 {[%emt 0:00:13]} 16. Bxc6 {[%emt 0:00:49]} Qxc6 {[%emt 0:00:42] Not much happened in this game.   Weighted Error Value: White=0.03 (flawless) /Black=0.06 (flawless)   OK:         	White=4     	Black=2} 1/2-1/2